Cogmind - Beta 13 @@@ ROGUE MODE // 2024.04.16 @ 23:11:53 Player: Isara Result: Self-destructed Performance ------------- Evolutions (1) 500 Regions Visited (2) 400 Robots Destroyed (22) 110 Value Destroyed (363) 363 Prototype IDs (0) 0 Alien Tech Used (0) 0 Bonus (0) 0 TOTAL SCORE: 1373 Bonus ------- None Cogmind --------- Core Integrity 249/400 Matter 5/300 Energy 34/100 System Corruption 6% Temperature Cool (0) Movement Flying (37) Location -9/Materials Parts ------- > --- POWER (1) -------- (None) > --- PROPULSION (3) --- Flight Unit Flight Unit > --- UTILITY (3) ------ Propulsion Shielding Shield Generator > --- WEAPON (2) ------- Backup Laser I Backup Laser I > --- INVENTORY (5) ---- Light Ion Engine Propulsion Shielding EM Shotgun Improved Medium Laser Light Cannon Peak State ------------ > --- POWER ------------ Light Ion Engine > --- PROPULSION ------- Flight Unit Flight Unit Flight Unit > --- UTILITY ---------- Seismic Detector Propulsion Shielding Propulsion Shielding > --- WEAPON ----------- Autogun Grenade Launcher > --- INVENTORY -------- Light Ion Engine [Rating: 10] Favorites ----------- Power Light Ion Engine Engine Light Ion Engine Propulsion Flight Unit Treads Light Treads Leg Aluminum Leg Hover Unit Improved Hover Unit Flight Unit Flight Unit Utility Propulsion Shielding Device Seismic Detector Protection Propulsion Shielding Weapon Light Assault Rifle Energy Gun EM Pulse Gun Ballistic Gun Light Assault Rifle Ballistic Cannon Light Cannon Launcher Grenade Launcher Build | -11 -10 -9 ------- Run | Yrd Mat Mat Slots Evolved 2 | . . 2 Power . | . . . Propulsion 1 | . . 1 Utility 1 | . . 1 Weapon . | . . . Parts Attached 26 | 7 7 12 Power 4 | 1 1 2 Engine 4 | 1 1 2 Core . | . . . Reactor . | . . . Propulsion 9 | 2 2 5 Treads 1 | . . 1 Leg 2 | 2 . . Wheel . | . . . Hover 1 | . . 1 Flight 5 | . 2 3 Utility 6 | 2 1 3 Device 3 | 2 . 1 Storage . | . . . Processor . | . . . Hackware . | . . . Protection 3 | . 1 2 Artifact . | . . . Weapon 7 | 2 3 2 Energy Gun 1 | 1 . . Energy Cannon . | . . . Ballistic Gun 4 | 1 1 2 Ballistic Cannon 1 | . 1 . Launcher 1 | . 1 . Special Weapon . | . . . Impact Weapon . | . . . Slashing Weapon . | . . . Piercing Weapon . | . . . Special Melee Weapon . | . . . Unidentified Prototypes . | . . . Parts Lost 7 | . 1 6 Power 2 | . . 2 Propulsion 1 | . . 1 Utility 1 | . . 1 Weapon 3 | . 1 2 Highest Loss Streak 4 | . 1 4 To Critical Strikes . | . . . Average Slot Usage (%) 75 | . 94 63 Engine 11 | . 14 10 Treads 1 | . . 2 Leg 3 | . 8 . Flight 19 | . 19 19 Device 15 | . 20 11 Protection 9 | . 7 10 Energy Gun 1 | . 2 1 Ballistic Gun 7 | . 13 3 Launcher 5 | . 7 4 Naked Turns . | . . . Heaviest Build 13 | 8 9 13 Greatest Support 20 | 20 20 20 Greatest Overweight (x) 1 | . 1 . Average Overweight (x) . | . . . Largest Inventory Capacity 5 | 5 5 5 Average Capacity 5 | 5 5 5 Most Carried 5 | 5 5 5 Average Carried 3 | 1 4 3 Final Capacity 5 | 5 5 5 Final Carried 5 | 5 3 5 Class Distribution -------------------- 68% | Mutant 31% | Scavenger-Mutant Dominant Class ---------------- Scavenger-Mutant | -10/Materials Mutant | -9/Materials Resources | -11 -10 -9 ----------- Run | Yrd Mat Mat Matter Collected 398 | 279 53 66 Remotely . | . . . Salvage Created 412 | 131 136 145 Parts 47 | 17 10 20 Haulers Intercepted 2 | . . 2 Recyclers Shooed . | . . . Parts Field Recycled . | . . . Retrieved Matter . | . . . Parts Self-Destructed . | . . . Prevented . | . . . Kills | -11 -10 -9 ------- Run | Yrd Mat Mat Combat Hostiles Destroyed 12 | 1 6 5 Guns 4 | 1 3 . AOE 8 | . 3 5 Classes Destroyed 9 | 3 3 3 Worker 1 | 1 . . Builder 2 | . 1 1 Tunneler 3 | 3 . . Hauler 2 | . . 2 Operator 1 | . 1 . Watcher 1 | . . 1 Swarmer 6 | . 3 3 Grunt 5 | 1 3 1 Sentry 1 | . . 1 Best Kill Streak 5 | 4 5 5 Combat Bots Only 3 | 1 3 3 Max Kills in Single Turn 3 | 1 3 1 Gunslinging 1 | . 1 . Exploded 3 | . 3 1 Melee . | . . . Uniques/NPCs Destroyed . | . . . Combat | -11 -10 -9 -------- Run | Yrd Mat Mat Hostile Shots Fired 93 | 4 54 35 Missed 28 | 1 16 11 Damage Taken 973 | 33 352 588 Core 238 | 22 65 151 Absorbed by Shields 73 | . . 73 Redirected to Shielding 34 | . . 34 Core Remaining (%) 78 | 91 65 . Volleys Fired 52 | 9 20 23 Largest 2 | 2 2 2 Hottest 60 | 60 60 53 Shots Fired 70 | 18 28 24 Gun 50 | 18 23 9 Cannon . | . . . Launcher 20 | . 5 15 Special . | . . . Kinetic 36 | 9 18 9 Thermal . | . . . Explosive 20 | . 5 15 Electromagnetic 14 | 9 5 . Robot Hit Streak 10 | 5 10 9 Robot Miss Streak 3 | 1 3 2 Penetration Max . | . . . Secondary Targets 1 | . 1 . Max Gunslinging Chain 1 | . 1 . Shots Hit Robots 40 | 11 15 14 Core Hits 36 | 7 12 17 Critical Kills . | . . . Critical Parts Destroyed . | . . . Critical Strikes 1 | 1 . . Corrupt 1 | 1 . . Melee Attacks . | . . . Impact . | . . . Slashing . | . . . Piercing . | . . . Sneak Attacks . | . . . Combat Hostiles . | . . . Follow-up Attacks . | . . . Damage Inflicted 1093 | 122 330 641 Guns 315 | 122 102 91 Cannons . | . . . Explosions 778 | . 228 550 Melee . | . . . Ramming . | . . . Kinetic 214 | 33 90 91 Thermal . | . . . Explosive 778 | . 228 550 Electromagnetic 101 | 89 12 . Impact . | . . . Slashing . | . . . Piercing . | . . . Highest Corruption 6 | . . 6 Average Corruption 6 | . . 6 Corruption Purged . | . . . Corruption Blocked . | . . . Effects 3 | . . 3 Matter Fused 2 | . . 2 Heat Flow Errors 1 | . . 1 Overload Shots . | . . . Overflow Damage 39 | . . 39 Projectiles . | . . . Explosions 39 | . . 39 Melee . | . . . Knockbacks . | . . . Impact . | . . . Kinetic . | . . . Secondary . | . . . Self-Inflicted Damage 138 | . 36 102 Shots 6 | . 3 3 Rammed . | . . . Targets Rammed . | . . . Kicked . | . . . Crushed . | . . . Highest Temperature 107 | 72 40 107 Average Temperature 30 | 42 17 26 Received Heat Transfer 51 | 18 . 33 Siege Activations . | . . . Robots Corrupted . | . . . Combat Hostiles . | . . . Parts Fried . | . . . Impact Corruptions . | . . . Robots Melted . | . . . Combat Hostiles . | . . . Parts Melted . | . . . Heat Transferred . | . . . Parts Sabotaged . | . . . Parts Stolen . | . . . Parts Stripped . | . . . Power Chain Reactions . | . . . Alert | -11 -10 -9 ------- Run | Yrd Mat Mat Peak Influence 366 | 40 213 366 Initial 89 | . 26 89 Average 154 | 23 109 269 Maximum Alert Level 1 | . 1 1 Low Security (%) 62 | 100 89 21 Level 1 37 | . 10 78 Level 2 . | . . . Level 3 . | . . . Level 4 . | . . . Level 5 . | . . . High Security . | . . . Max Security . | . . . Squads Dispatched 2 | . 1 1 Investigation 1 | . 1 . Extermination . | . . . Reinforcement 1 | . . 1 Assault . | . . . Garrison . | . . . Intercept . | . . . Searches Triggered . | . . . Construction Impeded . | . . . Haulers Reinforced . | . . . Active Scanning Responses . | . . . Cargo Convoy Interrupts . | . . . Stealth | -11 -10 -9 --------- Run | Yrd Mat Mat Distress Signals 1 | . . 1 Communications Jammed . | . . . Distress Signals . | . . . Times Spotted 22 | 1 9 12 Peak Tracking Total 4 | 1 3 4 Tactical Retreats . | . . . Traps | -11 -10 -9 ------- Run | Yrd Mat Mat Traps Triggered 2 | . 1 1 Indirectly . | . . . Trap Hack Attempts . | . . . Triggered . | . . . Disarmed . | . . . Reprogrammed . | . . . Reused . | . . . Traps Extracted . | . . . Installed . | . . . Triggered . | . . . Machines | -11 -10 -9 ---------- Run | Yrd Mat Mat Machines Disabled 2 | . 1 1 Max in Single Turn 1 | . 1 1 Machines Repaired . | . . . Machines Dismantled . | . . . Machines Sabotaged . | . . . Overloaded Fab Kills . | . . . Hacking | -11 -10 -9 --------- Run | Yrd Mat Mat Machines Accessed 5 | . 1 4 Terminals 4 | . 1 3 Fabricators . | . . . Repair Stations 1 | . . 1 Recycling Units . | . . . Scanalyzers . | . . . Garrison Access . | . . . Total Hacks 6 | . 1 5 Successful 4 | . . 4 Failed 2 | . 1 1 Catastrophic . | . . . Database Lockouts . | . . . Manual 1 | . 1 . Terminals 5 | . 1 4 Fabricators . | . . . Repair Stations 1 | . . 1 Recycling Units . | . . . Scanalyzers . | . . . Garrison Access . | . . . Terminal Hacks 3 | . . 3 Alert Level 1 | . . 1 Maintenance Status 1 | . . 1 Zone Layout 1 | . . 1 Fabricator Hacks . | . . . Repair Station Hacks 1 | . . 1 Refit 1 | . . 1 Recycling Unit Hacks . | . . . Scanalyzer . | . . . Garrison Access Hacks . | . . . Unauthorized Hacks . | . . . Terminals . | . . . Fabricators . | . . . Repair Stations . | . . . Recycling Units . | . . . Scanalyzers . | . . . Garrison Access . | . . . Data Cores Recovered 1 | . 1 . Used 1 | . 1 . Hacking Detections 3 | . 1 2 Full Trace Events . | . . . Feedback Events . | . . . Feedback Blocked . | . . . Robot Schematics Acquired . | . . . Robots Built . | . . . Authchips . | . . . Time . | . . . Total Robot Build Rating . | . . . Part Schematics Acquired . | . . . Parts Built . | . . . Authchips . | . . . Time . | . . . Total Part Build Rating . | . . . Parts Repaired . | . . . Time . | . . . Parts Recycled . | . . . Recycled Matter . | . . . Retrieved Matter . | . . . Retrieved Components . | . . . Parts Scanalyzed . | . . . Part Schematics Acquired . | . . . Parts Damaged . | . . . Bothacking | -11 -10 -9 ------------ Run | Yrd Mat Mat Used RIF Installer . | . . . Robots Hacked . | . . . Non-combat . | . . . Combat . | . . . Robot Hacks Applied . | . . . Relay Couplers Released . | . . . Fabnet Peak Effective % . | . . . Robots Rewired . | . . . Allies Hacked . | . . . Hacks Repelled . | . . . Allies | -11 -10 -9 -------- Run | Yrd Mat Mat Total Allies . | . . . Largest Group . | . . . Highest-Rated Group . | . . . Highest-Rated Ally . | . . . Total Orders . | . . . Ally Attacks . | . . . Total Damage . | . . . Kills . | . . . Allies Corrupted . | . . . Allies Melted . | . . . Intel | -11 -10 -9 ------- Run | Yrd Mat Mat Robot Analysis Total . | . . . Derelict Logs Recovered . | . . . Drone Launches . | . . . Drone Recoveries . | . . . Exploration | -11 -10 -9 ------------- Run | Yrd Mat Mat Turns Passed 700 | 203 193 304 Spaces Moved 868 | 146 219 503 Core 25 | 25 . . Treads 38 | . . 38 Legs 139 | 121 18 . Wheels . | . . . Hover . | . . . Flight 666 | . 201 465 Fastest Speed 34 | 50 37 34 Average Speed 58 | 108 56 45 Slowest Speed 160 | 120 120 160 Overloaded Moves . | . . . Propulsion Burnouts . | . . . Robots Hopped 6 | . 1 5 Cave-ins Triggered 1 | . . 1 Exploration Rate (%) 23 | 5 31 33 Regions Visited 2 Branch Regions . Pre-discovered Areas . | . . . Known Exits Taken . | . . . Unknown Exits Taken 2 | 1 1 . Scrap Searched . | . . . Spaces Dug . | . . . Terrain Destroyed 116 | . 17 99 Melee . | . . . Projectile . | . . . AOE 116 | . 17 99 Terrain Rammed . | . . . Walls Destroyed . | . . . Machines Disabled . | . . . Actions | -11 -10 -9 --------- Run | Yrd Mat Mat Total 998 | 175 268 555 Wait . | . . . Move 854 | 145 216 493 Hop 6 | . 1 5 Pick Up 36 | 13 11 12 Fast Attach . | . . . Attach 24 | 7 6 11 Detach 4 | . . 4 Swap 2 | . 1 1 Drop 20 | 1 13 6 Fire 52 | 9 20 23 Melee . | . . . Ram . | . . . Kick . | . . . Crush . | . . . Escape Stasis . | . . . Rewire . | . . . Trap . | . . . Miscellaneous . | . . . Route ------- -11/Scrapyard -10/Materials (discovered 2 exits: *Mat / [*Min]) -9/Materials History --------- Turn | Location | Event 2 | -11/Scrapyard | Met Revision 17 73 | -11/Scrapyard | Discovered new exit (range 8) 204 | -11/Scrapyard | Entered Materials 376 | -10/Materials | Discovered new exit (range 12) 382 | -10/Materials | Discovered new exit (range 7) 397 | -10/Materials | Entered another Materials area 397 | -9/Materials | Evolved 2 slots: Propulsion x1, Utility x1 517 | -9/Materials | Crushed by falling debris 564 | -9/Materials | Lost 4 parts (1p1u2w) 701 | -9/Materials | Self-destructed Last Messages --------------- 7 Tunnelers 4 Recyclers Downloaded coordinate data. K-01 Serf collects debris. Dropped Flight Unit. Acquired EM Shotgun. System corrupted: Heat flow error (+124). Connecting with Terminal... >>Alert(Check) Current Alert Level: 1-S Connecting with Terminal... >>Layout(Zone) Retrieving Zone 6V layout... Downloaded map data. Connecting with Repair Station... >>Refit Scanning configuration... Attaching: Backup Laser I x2 Lgt. Ion Engine destroyed. Map ----- +----------------------------------------------------+ | ?????????????????????????????????????????????????? | | ?????????????????????????????????????????????????? | | ?????????????????????????????????????????????????? | | ?????????????????????????????????????????????????? | | ?????????????????????????????????????????????????? | | ?????????????????????????????????????????????????? | | ?????????????????????????????????????????????????? | | ?????????????????????????????????????????????????? | | ?????????????????# ## ???????????????????????? | | ????????????????## ## ???????????????????????? | | ????????????????# # ???????????????????????? | | ######??????????# # ???????????????????????? | | #??????????# + ???????????????????????? | | #??????????# # ??????????##########???? | | #? ??####### # ??????????# #???? | | ### ## ### ### ??????????# """ #???? | | # ### #?####??????????# "R #???? | | + #???????????????# """ #???? | | # ### #???????????????# #???? | | ### ## #?# ########????????# """ #???? | | #?# ########?# # ########## """ ! #???? | | #?#+#######??# # + + """ #???? | | #?# #### # Y Y #### # #???? | | ######?# "T" + b "T" #??#^ #####+####???? | | ???????# [ # # """ #??# ??????????? | | ################ # @ #??####+#####?????????? | | ########?????????????????????? | | #####################????????????????????????????? | | ?????????????????????????????????????????????????? | | ?????????????????????????????????????????????????? | | ?????????????????????????????????????????????????? | | ?????????????????????????????????????????????????? | | | | | | | | | | | | | | | | | | | | | | | | | | | | | | | | | | | | | +----------------------------------------------------+ Best States ------------- Heat Dissipation 28 Energy Generation 10 Energy Capacity 125 Matter Stores 300 Matter Capacity 300 Sight Range 16 Terrain Scan Range 16 Terrain Scan Density 10 Propulsion Shielding 33 Evasion (%) 63 Recoil Reduction 1 Item Schematics ----------------- None Robot Schematics ------------------ None Fabricated ------------ Nothing Alien Tech Used ----------------- None Achievements -------------- Crack Shot Dynamic Key Let's See Who's Tougher Loot Pinata Unlikely Earthworm Challenges ------------ None Game ------ Seed AutogunThermicShield Manual? 0 Play Time 00:34:15 Cumulative 1.4 hours Start 2024.04.16 @ 22:36:37 End 2024.04.16 @ 23:11:53 Sessions 1 Manual Loads 0 Difficulty Rogue Special Mode None Game No. 2 Rogue 2 Adventurer 0 Explorer 0 Win Type - Total 0 Types 0/0/0/0/0/0/0/0/0 Lore% 0 Gallery% 3 Achievement% 3 Wizard Run 0 Options --------- Layout 1 ASCII 0 Keyboard 0 Movement Arrows Keybinds 0 Fullscreen 1 Font 32/Terminus Map View 25x17 Zoom Use 97% Tactical HUD 0 Map Filters NONE Filters NONE Steam 1 RUN: 55b2a3f8-827b-4cd3-b679-5157d5fac3fa